[Event "Reykjavik Open 2022"]
[Site "Reykjavik"]
[Date "2022.04.10"]
[Round "7.12"]
[White "Niemann, Hans Moke"]
[Black "Hedman, Erik"]
[Result "1-0"]
[ECO "C41"]
[WhiteElo "2642"]
[BlackElo "2368"]
[Annotator "TA"]
[PlyCount "71"]
[EventDate "2022.04.06"]
[EventCountry "ISL"]
[SourceTitle "playchess.com"]
[Source "ChessBase"]
[SourceQuality "1"]
[TimeControl "40/5400+30:1800+30"]

{[%evp 17,71,41,48,31,42,35,33,34,30,21,41,0,8,9,8,0,5,12,2,4,16,6,20,8,38,74,63,44,49,44,57,47,59,52,46,49,137,136,127,121,126,78,379,387,1114,961,1110,1075,1063,376,316,347,439,431,454,304]} 1. e4 {[%emt 0:03:02]} d6 {[%emt 0:00:25]} 2. d4 {[%emt 0:00:12]} Nf6 {[%emt 0:00:05]} 3. Nc3 {[%emt 0:00:05]} e5 {[%emt 0:00:18]} 4. Nf3 {[%emt 0:00:09]} Nbd7 {[%emt 0:00:18]} 5. Bc4 {[%emt 0:00:35]} Be7 {[%emt 0:00:11]} 6. O-O {[%emt 0:00:09]} O-O {[%emt 0:00:08]} 7. Re1 {[%emt 0:00:44]} c6 {[%emt 0:00:31]} 8. a4 {[%emt 0:00:06]} h6 {[%emt 0:00:17] now supersedes 8...b6.} 9. h3 {[%emt 0:00:38]} Re8 {[%emt 0:00:45]} 10. a5 {[%emt 0:01:40] C41: Philidor Defence.} Qc7 {[%emt 0:00:33]} 11. Be3 {[%emt 0:02:04]} exd4 {[%emt 0:00:54]} 12. Nxd4 {[%emt 0:01:53] White is slightly better.} Bf8 {[%emt 0:01:14]} 13. Bf4 {[%emt 0:00:56]} Rb8 {[%emt 0:02:13] [#]} 14. Re3 $146 {[%emt 0:03:16]} ({Predecessor:} 14. Bg3 b5 15. axb6 axb6 16. b4 Bb7 17. Bb3 b5 18. Re3 Ra8 19. Rb1 Ne5 20. Bh4 {1-0 (33) Eastlake,P (2256)-Burmeister,F (2256) ICCF email 2019}) 14... b5 {[%emt 0:10:20]} 15. axb6 $1 {[%emt 0:00:15]} axb6 {[%emt 0:00:04]} 16. b4 {[%emt 0:00:38]} b5 {[%emt 0:01:07]} 17. Bb3 {[%emt 0:00:05]} Ne5 {[%emt 0:02:06]} 18. Bg3 {[%emt 0:01:02]} Bd7 {[%emt 0:11:04]} 19. Qe2 {[%emt 0:01:24]} Qb6 {[%emt 0:17:17]} 20. Rd1 {[%emt 0:01:23]} c5 {[%emt 0:02:26]} 21. bxc5 {[%emt 0:00:11]} dxc5 {[%emt 0:00:07]} 22. Bxe5 {[%emt 0:00:26]} Rxe5 {[%emt 0:07:30]} 23. Nf3 {[%emt 0:00:10]} Ree8 {[%emt 0:02:25] ...c4 is the strong threat.} 24. e5 {[%emt 0:00:13][%cal Be4e5,Be5f6,Bf6g7][%mdl 32]} c4 {[%emt 0:00:16]} 25. exf6 {[%emt 0:00:16]} Rxe3 {[%emt 0:18:49]} 26. fxe3 {[%emt 0:00:09]} Be6 {[%emt 0:04:23]} (26... Qxf6 $14 27. Ne4 (27. Rxd7 Qxc3 28. Qd2 Qa1+ 29. Qe1 Qxe1+ 30. Nxe1 cxb3 $11) 27... Qe7) 27. Ba2 $16 {[%emt 0:00:15] Hoping for Nd4.} Qa5 {[%emt 0:02:52]} 28. Qe1 {[%emt 0:00:22]} b4 {[%emt 0:00:52] [#]} 29. Qg3 {[%emt 0:00:33]} Re8 $2 {[%emt 0:10:08][%mdl 8192] Loses the game.} (29... Rc8 $16 {is more resistant.}) 30. fxg7 $18 {[%emt 0:01:37]} Bc5 {[%emt 0:03:21]} (30... Bxg7 31. Ne4 Ra8) 31. Ne4 {[%emt 0:00:34][%cal Re4f6]} Bxe3+ {[%emt 0:00:18]} 32. Kh1 {[%emt 0:00:06][%cal Re4f6]} Qf5 {[%emt 0:00:11] Inhibits Nf6+.} 33. Qe5 $2 {[%emt 0:01:04]} (33. Qh4 {aiming for Nf6+.} Ra8 {[#]} 34. Re1 $1 Kxg7 35. Rxe3) 33... Qxe5 {[%emt 0:01:25]} 34. Nxe5 {[%emt 0:00:04] Black must now prevent Nf6+. Chess con chili. Pair of Knights!} Kxg7 {[%emt 0:00:26]} 35. Nd6 {[%emt 0:00:05] Inhibits Bf5.} Rd8 {[%emt 0:00:49] [#]} 36. Nf5+ $1 {[%emt 0:00:07][%mdl 512] Weighted Error Value: White=0.39/Black=0.31} 1-0

[Event "Reykjavik Open 2022"]
[Site "Reykjavik"]
[Date "2022.04.10"]
[Round "7.13"]
[White "Berdnyk, Mariia"]
[Black "Adhiban, B.."]
[Result "1/2-1/2"]
[ECO "A62"]
[WhiteElo "2287"]
[BlackElo "2648"]
[Annotator "TA"]
[PlyCount "126"]
[EventDate "2022.04.06"]
[EventCountry "ISL"]
[SourceTitle "playchess.com"]
[Source "ChessBase"]
[SourceQuality "1"]
[TimeControl "40/5400+30:1800+30"]

{[%evp 18,126,16,15,25,8,26,4,37,-47,0,0,0,0,0,-18,-14,-13,-25,-12,0,0,0,-9,0,-16,0,0,0,0,0,0,32,21,29,31,41,0,0,0,0,0,62,36,50,0,0,-8,0,-94,0,0,0,0,0,-12,-12,-16,-18,-25,0,0,0,-8,-2,-8,-8,-8,-8,-8,-8,-8,0,0,0,0,0,0,0,0,0,0,0,0,0,0,0,0,0,-8,-8,-8,-8,-8,-8,-8,-8,-10,-10,-10,-8,-8,-8,-8,-8,-8,0,-8,-8,-8,-8]} 1. d4 {[%emt 0:00:02]} Nf6 {[%emt 0:02:21]} 2. c4 {[%emt 0:00:07]} c5 {[%emt 0:00:13]} 3. d5 {[%emt 0:00:17]} e6 {[%emt 0:01:02]} 4. Nc3 {[%emt 0:00:23]} exd5 {[%emt 0:00:06]} 5. cxd5 {[%emt 0:00:03]} d6 {[%emt 0:00:04]} 6. g3 {[%emt 0:01:38]} g6 {[%emt 0:00:08]} 7. Bg2 {[%emt 0:00:05]} Bg7 {[%emt 0:00:03]} 8. Nf3 {[%emt 0:00:05]} O-O {[%emt 0:00:02]} 9. O-O {[%emt 0:00:05]} Re8 {[%emt 0:00:03]} 10. Bf4 {[%emt 0:01:13]} Bf5 $1 {[%emt 0:00:05][%mdl 4] now scores much better than the old 10...a6. A62: Modern Benoni: Fianchetto Variation without early ...Nbd7.} 11. Nh4 {[%emt 0:04:40]} Bg4 {[%emt 0:00:06][%cal Ob7b5]} 12. Qd2 {[%emt 0:09:39]} b5 {[%emt 0:00:04]} 13. h3 {[%emt 0:03:07] [#]} (13. Rfe1 $14) 13... b4 $1 {[%emt 0:06:04]} 14. hxg4 $11 {[%emt 0:00:06] Hoping for Nb5.} bxc3 {[%emt 0:00:03]} 15. bxc3 {[%emt 0:00:38]} ({But not} 15. Qxc3 $2 {[#]} Nh5 $1 {[%mdl 512]} 16. Qb3 Nxf4 17. gxf4 Qxh4 $19) 15... Nxg4 {[%emt 0:00:01] [#]} 16. Nf3 $146 {[%emt 0:11:30]} ({Predecessor:} 16. Rac1 Ne5 17. c4 Nbd7 18. Bg5 f6 19. Bh6 Bxh6 20. Qxh6 f5 21. e4 Ng4 22. Qf4 {0-1 (29) Leiva Rodriguez,J (2427)-Chigaev,M (2559) Chess.com INT 2017}) 16... Nf6 {[%emt 0:08:53]} 17. Qd3 {[%emt 0:02:23]} Ne4 {[%emt 0:00:55]} 18. Nd2 {[%emt 0:01:03]} Nxd2 {[%emt 0:03:01]} 19. Qxd2 {[%emt 0:01:06]} Qc7 {[%emt 0:02:57]} 20. e4 {[%emt 0:03:59]} Nd7 {[%emt 0:00:11]} 21. Bh6 {[%emt 0:02:07]} Rab8 {[%emt 0:08:02]} 22. Bxg7 {[%emt 0:01:26]} Kxg7 {[%emt 0:00:01]} 23. f4 {[%emt 0:05:51]} Qb6 {[%emt 0:05:22]} 24. Rae1 {[%emt 0:07:05]} Qb2 {[%emt 0:05:21]} 25. Qd3 {[%emt 0:00:27]} Qb5 {[%emt 0:06:24]} (25... Qxa2 $2 26. Ra1 Qb3 27. Rfb1 $18) 26. c4 {[%emt 0:04:07]} Qb2 {[%emt 0:01:57]} 27. Re2 {[%emt 0:01:07]} (27. Bh3 $5 {[%cal Rh3d7]} Nb6 28. Re2 Qd4+ 29. Qxd4+ cxd4 30. Rd1 $14) 27... Qd4+ {[%emt 0:01:02]} 28. Qxd4+ {[%emt 0:00:21]} cxd4 {[%emt 0:00:04]} 29. Rd1 {[%emt 0:01:01]} Nc5 {[%emt 0:02:11]} (29... f6 $11) 30. Rxd4 $14 {[%emt 0:00:52]} Rb1+ {[%emt 0:00:10]} 31. Kf2 {[%emt 0:01:23]} (31. Kh2 $1 $14) 31... f6 $11 {[%emt 0:00:05]} 32. Ke3 {[%emt 0:08:13]} f5 {[%emt 0:06:49]} 33. Kf2 {[%emt 0:01:26]} (33. Rdd2 $11 {remains equal.}) 33... Kf6 {[%emt 0:00:31]} ({Black should try} 33... fxe4 $17 {[%cal Oe4e3] ...e3+! is the strong threat.} 34. Bxe4 Ra1) 34. e5+ $1 {[%emt 0:06:22]} dxe5 {[%emt 0:02:37]} 35. fxe5+ {[%emt 0:00:06]} Rxe5 {[%emt 0:00:04]} 36. d6 {[%emt 0:01:04] Strongly threatening Rxe5.} Rxe2+ {[%emt 0:02:31]} 37. Kxe2 {[%emt 0:00:02][%mdl 4096] Endgame KRB-KRN} Rb2+ {[%emt 0:01:32]} 38. Kf1 $1 {[%emt 0:00:06]} Rb1+ {[%emt 0:00:34]} 39. Kf2 {[%emt 0:01:13] The position is equal.} Ke6 {[%emt 0:03:52]} 40. Bc6 {[%emt 0:00:00] aiming for d7.} Rb8 {[%emt 0:00:00]} 41. Ke3 {[%emt 0:12:05]} Rc8 {[%emt 0:09:53]} 42. Bd5+ {[%emt 0:01:54]} Kd7 {[%emt 0:00:34]} 43. Rh4 {[%emt 0:07:19]} h5 {[%emt 0:18:03]} 44. Bf7 {[%emt 0:00:28] Inhibits Re8+.} Kxd6 {[%emt 0:00:00]} 45. Bxg6 {[%emt 0:00:52]} Rg8 {[%emt 0:00:03]} 46. Bxf5 {[%emt 0:01:25]} Rxg3+ {[%emt 0:00:05]} 47. Kf4 {[%emt 0:01:11]} Rg2 {[%emt 0:00:49]} 48. Rxh5 {[%emt 0:00:16]} Rxa2 {[%emt 0:00:07]} 49. Rh6+ {[%emt 0:00:17]} Kc7 {[%emt 0:00:16]} 50. Ke5 {[%emt 0:00:39]} Rd2 {[%emt 0:00:55]} 51. Be4 {[%emt 0:01:42] And now Rc6+ would win.} Nd7+ {[%emt 0:01:06]} 52. Kf4 {[%emt 0:00:05]} Rd6 {[%emt 0:00:12]} 53. Rxd6 {[%emt 0:01:20]} Kxd6 {[%emt 0:00:02] KB-KN} 54. Ke3 {[%emt 0:00:07]} Kc5 {[%emt 0:00:02]} 55. Bd5 {[%emt 0:00:07]} a5 {[%emt 0:00:28]} 56. Kd3 {[%emt 0:00:55]} Kb4 {[%emt 0:00:06]} 57. c5 {[%emt 0:01:55]} Nxc5+ {[%emt 0:00:06]} 58. Kc2 {[%emt 0:00:05]} Ka3 {[%emt 0:00:03]} 59. Bc6 {[%emt 0:00:18]} Ne6 {[%emt 0:00:10] ( -> ...Nd4+)} 60. Kc3 {[%emt 0:00:06] Prevents Nd4.} Nc7 {[%emt 0:00:11]} 61. Kc4 {[%emt 0:01:06]} Ne6 {[%emt 0:00:54]} 62. Kb5 {[%emt 0:00:00]} Nd4+ {[%emt 0:00:02]} 63. Kxa5 Nxc6+ {[%emt 0:00:37] Weighted Error Value: White=0.10 (very precise) /Black=0.09 (flawless)} 1/2-1/2

[Event "Reykjavik Open 2022"]
[Site "Reykjavik"]
[Date "2022.04.10"]
[Round "7.14"]
[White "Mishra, Abhimanyu"]
[Black "Rosen, Eric"]
[Result "1-0"]
[ECO "B40"]
[WhiteElo "2505"]
[BlackElo "2356"]
[Annotator "TA"]
[PlyCount "77"]
[EventDate "2022.04.06"]
[EventCountry "ISL"]
[SourceTitle "playchess.com"]
[Source "ChessBase"]
[SourceQuality "1"]
[TimeControl "40/5400+30:1800+30"]

{[%evp 9,77,8,16,12,10,5,0,0,41,37,37,43,45,45,165,167,233,237,263,196,183,181,296,289,283,297,298,281,539,529,605,581,738,687,705,691,1025,1026,1013,1004,1003,993,980,954,1161,1143,1042,929,890,832,1155,1155,1155,1155,1155,1155,1141,854,1144,1144,1143,1098,1583,1257,1895,1750,1168,1240,1233,1131]} 1. e4 {[%emt 0:00:02]} c5 {[%emt 0:00:32]} 2. Nf3 {[%emt 0:00:07]} e6 {[%emt 0:00:59]} 3. g3 {[%emt 0:00:13]} Nc6 {[%emt 0:00:41]} 4. Bg2 {[%emt 0:00:10]} Nf6 {[%emt 0:00:35]} 5. Qe2 {[%emt 0:00:18]} e5 {[%emt 0:01:13]} 6. O-O {[%emt 0:01:06] B40: Sicilian: 2...e6, Unusual lines.} Be7 {[%emt 0:00:41]} 7. c3 {[%emt 0:02:15]} O-O {[%emt 0:00:57]} 8. Na3 {[%emt 0:00:30] The position is equal.} d5 {[%emt 0:10:05]} 9. exd5 {[%emt 0:00:56]} Qxd5 {[%emt 0:00:07]} 10. d3 {[%emt 0:06:29]} Bf5 {[%emt 0:05:13] [#]} 11. Re1 $146 {[%emt 0:04:19][%cal Rf3e5]} ({Predecessor:} 11. Rd1 Rad8 12. Nh4 Bxd3 13. Qe3 e4 14. b3 Ng4 15. Qf4 f5 16. c4 Qe6 17. f3 g5 18. Qd2 e3 19. Qe1 Nf2 20. Bxe3 {0-1 (20) Alexeev,A (2287)-Panarin,M (2562) Sochi 2018}) 11... Bd6 {[%emt 0:08:49]} (11... Nd7 $14) 12. Nd4 $18 {[%emt 0:18:37]} Qxg2+ {[%emt 0:18:19]} (12... Nxd4 $142 13. cxd4 Qe6) 13. Kxg2 {[%emt 0:00:09]} exd4 {[%emt 0:00:02]} 14. Nc4 {[%emt 0:14:05]} Rfe8 {[%emt 0:02:57]} 15. Qd1 {[%emt 0:03:19]} ({Much less strong is} 15. Nxd6 $6 Rxe2 16. Rxe2 Bxd3 $14) 15... Bc7 {[%emt 0:02:02]} (15... Rxe1 $142 16. Qxe1 Bf8) 16. Rxe8+ {[%emt 0:03:27]} Rxe8 {[%emt 0:00:22]} 17. Bg5 {[%emt 0:01:32]} Nd5 {[%emt 0:02:05]} 18. Qb3 {[%emt 0:09:45]} Bxd3 $2 {[%emt 0:19:57] [#]} (18... Bc8 {keeps fighting.} 19. Qb5 dxc3 20. bxc3 (20. Qxc5 cxb2 21. Nxb2 Be6 $18) 20... Nxc3 21. Qxc5 Be6) 19. Qxb7 $1 {[%emt 0:02:36] White is clearly winning.} Nd8 {[%emt 0:01:46]} (19... dxc3 20. bxc3) 20. Qb5 {[%emt 0:05:05][%cal Rb5e8]} ({Inferior is} 20. Qxd5 Be4+ 21. Qxe4 Rxe4 $11) 20... Re2 {[%emt 0:05:10]} 21. Bxd8 {[%emt 0:05:26]} Bxd8 {[%emt 0:01:52] [#]} 22. Qd7 $1 {[%emt 0:00:51]} Be7 {[%emt 0:00:33] [#]} (22... Nf6 23. Qxd8+) 23. Ne5 {[%emt 0:01:20][%mdl 512]} Rxe5 {[%emt 0:07:19]} 24. Qe8+ {[%emt 0:00:14]} Bf8 {[%emt 0:00:04]} 25. Qxe5 {[%emt 0:00:07]} dxc3 {[%emt 0:00:05]} 26. bxc3 {[%emt 0:00:20]} Nb6 {[%emt 0:01:14]} 27. Rd1 {[%emt 0:00:51]} c4 {[%emt 0:00:12] [#]} 28. Rxd3 $1 {[%emt 0:00:21]} cxd3 {[%emt 0:00:06]} 29. Qd4 {[%emt 0:00:06]} g6 {[%emt 0:00:49]} 30. Qxd3 {[%emt 0:00:07]} Na4 {[%emt 0:00:46]} 31. Qa6 {[%emt 0:00:36][%csl LRa4,LRa7]} Nxc3 {[%emt 0:00:04]} 32. Qxa7 {[%emt 0:00:09]} Nb5 {[%emt 0:00:04]} 33. Qb8 {[%emt 0:00:44]} Na3 {[%emt 0:00:05]} 34. Kf3 {[%emt 0:00:15]} Kg7 {[%emt 0:00:12]} 35. Ke4 {[%emt 0:00:28]} h5 {[%emt 0:01:09]} 36. f4 {[%emt 0:00:30]} Be7 {[%emt 0:00:52]} 37. Qe5+ {[%emt 0:00:47]} Bf6 {[%emt 0:00:14]} 38. Qc5 {[%emt 0:00:06]} Nb1 {[%emt 0:00:54]} 39. Kd3 {[%emt 0:00:09] Black got outplayed after the opening.  Weighted Error Value: White=0.07 (flawless) /Black=0.54} 1-0

[Event "Reykjavik Open 2022"]
[Site "Reykjavik"]
[Date "2022.04.10"]
[Round "7.15"]
[White "Burlacu, Bogdan"]
[Black "Libiszewski, Fabien"]
[Result "0-1"]
[ECO "A49"]
[WhiteElo "2294"]
[BlackElo "2505"]
[Annotator "TA"]
[PlyCount "66"]
[EventDate "2022.04.06"]
[EventCountry "ISL"]
[SourceTitle "playchess.com"]
[Source "ChessBase"]
[SourceQuality "1"]
[TimeControl "40/5400+30:1800+30"]

{[%evp 9,66,24,24,0,16,0,3,0,0,0,4,6,15,0,31,27,29,36,74,37,79,29,54,59,69,46,40,49,40,45,54,39,42,12,14,0,12,5,15,0,27,0,26,17,25,-106,-107,-362,-338,-563,-559,-610,-606,-564,-528,-640,-635,-599,-560]} 1. d4 {[%emt 0:02:09]} Nf6 {[%emt 0:00:20]} 2. Nf3 {[%emt 0:00:08]} g6 {[%emt 0:00:30]} 3. g3 {[%emt 0:00:06]} b6 {[%emt 0:01:27]} 4. Bg2 {[%emt 0:00:34]} Bb7 {[%emt 0:00:23]} 5. O-O {[%emt 0:00:57]} Bg7 {[%emt 0:00:20]} 6. Nbd2 {[%emt 0:04:55] A49: 1 d4 Nf6 2 Nf3 g6 3 g3: Anti-King's Indian systems.} c5 {[%emt 0:06:19]} 7. e3 {[%emt 0:04:25]} O-O {[%emt 0:02:51]} 8. b3 {[%emt 0:02:09] The position is equal.} d6 {[%emt 0:26:53]} 9. Bb2 {[%emt 0:02:43]} Nbd7 {[%emt 0:00:12]} 10. Re1 {[%emt 0:09:02]} a6 {[%emt 0:03:18]} 11. c4 {[%emt 0:07:17]} Qc7 {[%emt 0:04:49]} 12. d5 {[%emt 0:07:10] [#]} Rae8 $146 {[%emt 0:05:11]} ({Predecessor:} 12... e5 13. dxe6 fxe6 14. Bh3 Rfe8 15. Ng5 Nf8 16. Bg2 Rad8 17. Bxb7 Qxb7 18. Qf3 Qxf3 19. Ngxf3 {1-0 (47) Lebredo Zaragoitia,G (2320)-Ratcu,T (2215) Sao Paulo 1997}) 13. e4 {[%emt 0:01:28]} e5 {[%emt 0:00:29]} 14. Nf1 {[%emt 0:25:50]} Bc8 {[%emt 0:08:16]} 15. Bh3 {[%emt 0:04:38]} ({White should try} 15. Qe2 $16) 15... Nh5 {[%emt 0:04:43]} 16. N3d2 {[%emt 0:04:25]} Nb8 {[%emt 0:10:34]} 17. Bxc8 {[%emt 0:00:49]} Qxc8 {[%emt 0:00:01]} 18. Kg2 {[%emt 0:00:16]} Bh6 {[%emt 0:00:07]} 19. Ne3 {[%emt 0:03:26]} Nd7 {[%emt 0:08:39][%cal Bb8d7,Bd7f6,Bf6g4][%mdl 32]} 20. Bc3 {[%emt 0:04:12][%cal Oe3f5]} (20. Ng4 $5 {[%cal Rg4h6]} Bg7 21. a4 $14) 20... Ndf6 {[%emt 0:02:17]} 21. a3 {[%emt 0:03:47]} Bxe3 {[%emt 0:00:30]} 22. Rxe3 {[%emt 0:00:55]} Ng4 {[%emt 0:00:16]} 23. Re1 {[%emt 0:00:42]} f5 {[%emt 0:00:18][%cal Bf7f5,Bf5f4][%mdl 32]} 24. f3 {[%emt 0:02:52]} Ngf6 {[%emt 0:01:01]} 25. Qe2 {[%emt 0:00:29]} Rf7 {[%emt 0:04:28]} 26. Rf1 {[%emt 0:00:57]} Ref8 {[%emt 0:00:31]} 27. Rae1 {[%emt 0:01:29]} (27. exf5 $1 $11 Qxf5 28. Rae1) 27... f4 $1 $17 {[%emt 0:03:04] &Nero is more active.} 28. Qf2 $2 {[%emt 0:05:17][%mdl 8192] Loses the game.} ({Avoid the trap} 28. g4 $2 Nxg4 $1 {[%mdl 512]} 29. Kg1 (29. fxg4 $2 f3+ 30. Rxf3 Rxf3 $19) 29... Ne3 $19) (28. Rg1 $17 {was called for.}) 28... g5 $1 $19 {[%emt 0:02:00]} 29. g4 $2 {[%emt 0:00:50] [#]} (29. Kh1 fxg3 30. Qg2 gxh2 31. Qxh2) 29... Nxg4 $1 {[%emt 0:00:04][%mdl 512] Black is clearly winning.} 30. fxg4 {[%emt 0:00:03]} (30. Qg1 Ne3+) 30... Qxg4+ {[%emt 0:00:04]} 31. Kh1 {[%emt 0:00:12] [#] Rg1 is the strong threat.} Ng3+ $1 {[%emt 0:00:07][%mdl 512]} 32. Kg1 {[%emt 0:01:28]} (32. hxg3 fxg3) 32... Nxf1+ {[%emt 0:01:47]} 33. Kxf1 {[%emt 0:00:05]} Qh3+ {[%emt 0:00:07] Weighted Error Value: White=0.43/Black=0.07 (flawless)} 0-1

[Event "Reykjavik Open 2022"]
[Site "Reykjavik"]
[Date "2022.04.10"]
[Round "7.16"]
[White "Williams, Simon K"]
[Black "Soham Das"]
[Result "1/2-1/2"]
[ECO "D10"]
[WhiteElo "2464"]
[BlackElo "2330"]
[Annotator "TA"]
[PlyCount "43"]
[EventDate "2022.04.06"]
[EventCountry "ISL"]
[SourceTitle "playchess.com"]
[Source "ChessBase"]
[SourceQuality "1"]
[TimeControl "40/5400+30:1800+30"]

{[%evp 12,43,17,7,15,35,20,17,4,0,12,0,10,13,8,10,10,9,29,29,30,30,50,0,0,-22,-22,-22,-36,-22,-22,-22,-7,-7]} 1. d4 {[%emt 0:00:26]} d5 {[%emt 0:06:23]} 2. c4 {[%emt 0:00:37]} c6 {[%emt 0:00:06]} 3. cxd5 {[%emt 0:01:58]} cxd5 {[%emt 0:00:06]} 4. Nc3 {[%emt 0:00:06]} Nf6 {[%emt 0:00:03]} 5. Bf4 {[%emt 0:00:50]} Nc6 {[%emt 0:00:05]} 6. e3 {[%emt 0:00:12]} a6 {[%emt 0:00:02]} 7. Be2 {[%emt 0:05:09]} Bf5 {[%emt 0:00:38] D10: Slav Defence: 3 cxd5 (without early Nf3) and 3 Nc3.} 8. Nf3 {[%emt 0:03:27]} Rc8 {[%emt 0:20:41]} 9. Ne5 {[%emt 0:09:26]} Nxe5 {[%emt 0:15:09]} 10. Bxe5 {[%emt 0:10:39]} e6 {[%emt 0:08:13] [#]} 11. Bxf6 $146 {[%emt 0:22:24]} ({Predecessor:} 11. Qb3 Qd7 12. f3 Bg6 13. O-O Rc6 14. e4 Be7 15. exd5 exd5 16. Rac1 O-O 17. Na4 {½-½ (43) Iturrizaga Bonelli,E (2603)-Delgado Ramos,H (2488) Barbera del Valles 2011}) 11... gxf6 {[%emt 0:05:07]} 12. Qa4+ {[%emt 0:01:16]} Qd7 {[%emt 0:00:54]} 13. Qxd7+ {[%emt 0:00:50]} Kxd7 {[%emt 0:00:04]} 14. Kd2 {[%emt 0:00:34]} Bb4 {[%emt 0:05:49]} 15. Rhc1 {[%emt 0:00:10]} Rc6 {[%emt 0:03:23][%cal Bc8c6,Bc6b6,Bb6b3][%mdl 32]} 16. a3 {[%emt 0:00:42]} Bxc3+ {[%emt 0:00:10]} 17. bxc3 {[%emt 0:03:31]} (17. Rxc3 $14 h6 18. Rxc6 Kxc6 19. h4) 17... Rhc8 $11 {[%emt 0:00:36]} 18. Ra2 {[%emt 0:04:15]} Rb6 $1 {[%emt 0:02:46] Inhibits Rb2.} 19. Bd3 {[%emt 0:05:53] Prevents Bb1.} Bxd3 {[%emt 0:02:16]} 20. Kxd3 {[%emt 0:00:01]} Rb3 {[%emt 0:00:27]} 21. a4 {[%emt 0:00:16]} a5 {[%emt 0:04:07]} 22. g4 $1 {[%emt 0:00:19] Weighted Error Value: White=0.09 (flawless) /Black=0.05 (flawless)} 1/2-1/2